fUSD/lending_fUSD_20241104
["ID","MTS","AMOUNT","RATE_DAILY","PERIOD"]
[341282307,1730740290394,-566.48690322,0.00040102,2]
[341282308,1730740290404,-500.0,0.00040102,2]
[341282309,1730740290414,-150.0,0.00040106,2]
[341282310,1730740290424,-153.60284394,0.0004011,2]
[341282311,1730740290434,-150.0,0.00040115,2]
[341282312,1730740290447,-1731.28255447,0.00040127,15]
[341282313,1730740290457,-150.0,0.0004016,2]
[341282314,1730740290466,-150.0,0.00040167,2]
[341282315,1730740290476,-591.11,0.00040173,2]
[341282316,1730740290486,-1598.16,0.00040173,2]
[341282317,1730740290496,-740.06,0.00040173,2]
[341282318,1730740290506,-665.74,0.00040173,2]
[341282319,1730740290515,-500.0,0.00040173,2]
[341282320,1730740290524,-500.0,0.00040173,2]
[341282321,1730740290534,-150.0,0.00040176,2]
[341282322,1730740290544,-150.0,0.00040178,2]
[341282323,1730740290554,-150.0,0.00040196,2]
[341282324,1730740290563,-150.0,0.00040218,2]
[341282325,1730740290573,-742.97153966,0.00040273,2]
[341282326,1730740290582,-150.0,0.00040273,2]
[341282327,1730740290592,-161.80528,0.00040288,7]
[341282328,1730740290601,-150.0,0.0004029,2]
[341282329,1730740290611,-150.0,0.00040301,2]
[341282330,1730740290621,-150.0,0.00040332,2]
[341282331,1730740290631,-150.0,0.00040335,2]
[341282332,1730740290640,-150.0,0.00040338,2]
[341282333,1730740290651,-150.0,0.00040358,2]
[341282334,1730740290660,-150.0,0.00040377,2]
[341282335,1730740290670,-150.0,0.00040387,2]
[341282336,1730740290679,-150.0,0.00040389,2]
[341282337,1730740290690,-150.0,0.00040407,2]
[341282338,1730740290700,-1493.51,0.0004041,120]
[341282339,1730740290710,-150.0,0.00040418,2]
[341282340,1730740290720,-591.11,0.00040447,2]
[341282341,1730740290730,-1598.16,0.00040447,2]
[341282342,1730740290740,-740.06,0.00040447,2]
[341282343,1730740290750,-665.74,0.00040447,2]
[341282344,1730740290759,-500.0,0.00040447,2]
[341282345,1730740290769,-498.64789796,0.00040447,2]
[341282346,1730740290779,-1549.32276681,0.00040455,2]
[341282347,1730740290788,-161.80528,0.00040488,7]
[341282348,1730740290799,-150.0,0.00040495,2]
[341282349,1730740290808,-150.0,0.00040511,2]
[341282350,1730740290819,-150.0,0.00040521,2]
[341282351,1730740290829,-150.0,0.00040532,2]
[341282352,1730740290838,-500.0,0.00040546,2]
[341282353,1730740290848,-150.0,0.000406,2]
[341282354,1730740290858,-150.0,0.00040626,2]
[341282355,1730740290868,-150.0,0.00040635,2]
[341282356,1730740290877,-150.0,0.00040636,2]
[341282357,1730740290887,-150.0,0.00040642,2]
[341282358,1730740290897,-150.0,0.00040646,2]
[341282359,1730740290907,-150.0,0.00040647,2]
[341282360,1730740290917,-2109.00947289,0.00040648,27]
[341282361,1730740290927,-150.0,0.00040653,2]
[341282362,1730740291090,-150.0,0.00040662,2]
[341282363,1730740291100,-150.0,0.00040666,2]
[341282364,1730740291112,-761.0,0.00040685,2]
[341282365,1730740291122,-761.0,0.00040685,2]
[341282366,1730740291131,-761.0,0.00040685,2]
[341282367,1730740291140,-161.80528,0.00040688,7]
[341282368,1730740291151,-150.0,0.00040688,2]
[341282369,1730740291162,-150.0,0.00040697,2]
[341282370,1730740291172,-150.0,0.00040699,2]
[341282371,1730740291181,-150.0,0.00040701,2]
[341282372,1730740291202,-591.11,0.00040721,2]
[341282373,1730740291214,-1598.16,0.00040721,2]
[341282374,1730740291223,-740.06,0.00040721,2]
[341282375,1730740291234,-665.74,0.00040721,2]
[341282376,1730740291243,-500.0,0.00040721,2]
[341282377,1730740291254,-400.08,0.00040729,2]
[341282378,1730740291263,-150.0,0.00040743,2]
[341282379,1730740291272,-150.0,0.00040755,2]
[341282380,1730740291281,-150.0,0.00040766,2]
[341282381,1730740291290,-150.0,0.00040775,2]
[341282382,1730740291300,-150.0,0.000408,43]
[341282383,1730740291309,-3900.0,0.000409,14]
[341282384,1730740291318,-1881.0513896,0.00040912,2]
[341282385,1730740291327,-6620.1576966,0.0004094,2]
[341282386,1730740291336,-186.54011368,0.00040968,120]
[341282387,1730740291346,-591.11,0.00040995,2]
[341282388,1730740291355,-223.0,0.00040995,14]
[341282389,1730740291365,-151.0,0.00040995,14]
[341282390,1730740291374,-1598.16,0.00040995,2]
[341282391,1730740291383,-740.06,0.00040995,2]
[341282392,1730740291393,-665.74,0.00040995,2]
[341282393,1730740291402,-500.0,0.00040995,2]
[341282394,1730740291411,-900.0,0.00041,42]
[341282395,1730740291421,-611.42,0.00041068,2]
[341282396,1730740291430,-152.502219,0.00041068,14]
[341282397,1730740291440,-500.0,0.00041068,2]
[341282398,1730740291451,-500.0,0.00041068,2]
[341282399,1730740291461,-201.96237454,0.00041068,2]
[341282400,1730740291470,-500.0,0.00041068,2]
[341282401,1730740291480,-500.0,0.00041068,2]
[341282402,1730740291490,-118600.603207,0.00041069,7]
[341282403,1730740291500,-12776.6026109,0.00041069,7]
[341282404,1730740291510,-749.75722299,0.00041069,7]
[341282405,1730740291519,-414631.96824,0.00041069,7]
[341282406,1730740291529,-151.0,0.00041069,7]
[341282407,1730740291538,-151.0,0.00041069,14]
[341282408,1730740291548,-151.0,0.00041069,14]
[341282409,1730740291558,-217.720213,0.00041069,14]
[341282410,1730740291567,-151.0,0.00041069,7]
[341282411,1730740291576,-826.110308,0.00041069,14]
[341282412,1730740291586,-826.110308,0.00041069,14]
[341282413,1730740291595,-151.0,0.00041069,14]
[341282414,1730740291606,-151.0,0.00041069,14]
[341282415,1730740291615,-151.0,0.00041069,14]
[341282416,1730740291624,-157.399859,0.00041069,14]
[341282417,1730740291633,-157.399859,0.00041069,14]
[341282418,1730740291643,-533.94417624,0.00041094,2]
[341282419,1730740291652,-500.0,0.00041095,2]
[341282420,1730740291662,-500.0,0.00041095,2]
[341282421,1730740291672,-502.31429581,0.00041095,2]
[341282422,1730740291681,-150.0,0.00041095,30]
[341282423,1730740291692,-300.0,0.00041095,30]
[341282424,1730740291701,-450.0,0.00041095,30]
[341282425,1730740291710,-600.0,0.00041095,30]
[341282426,1730740291719,-500.0,0.00041095,60]
[341282427,1730740291729,-500.0,0.00041095,2]
[341282428,1730740291739,-276.79284785,0.00041095,2]
[341282429,1730740291749,-500.0,0.00041095,2]
[341282430,1730740291759,-500.0,0.00041095,2]
[341282431,1730740291769,-500.0,0.00041095,2]
[341282432,1730740291779,-500.0,0.00041095,2]
[341282433,1730740291789,-500.0,0.00041095,2]
[341282434,1730740291798,-500.0,0.00041095,2]
[341282435,1730740291808,-500.0,0.00041095,2]
[341282436,1730740291817,-500.0,0.00041095,2]
[341282437,1730740291827,-500.0,0.00041095,2]
[341282438,1730740291836,-500.0,0.00041095,2]
[341282439,1730740291846,-500.0,0.00041095,2]
[341282440,1730740291855,-500.0,0.00041095,2]
[341282441,1730740291865,-500.0,0.00041095,2]
[341282442,1730740291875,-500.0,0.00041095,2]
[341282443,1730740291884,-500.0,0.00041095,2]
[341282444,1730740291894,-500.0,0.00041095,2]
[341282445,1730740291903,-500.0,0.00041095,2]
[341282446,1730740291913,-500.0,0.00041095,2]
[341282447,1730740291922,-500.0,0.00041095,2]
[341282448,1730740291932,-500.0,0.00041095,2]
[341282449,1730740291946,-500.0,0.00041095,2]
[341282450,1730740291958,-500.0,0.00041095,2]
[341282451,1730740291968,-435.46171407,0.00041095,2]
[341282452,1730740291977,-500.0,0.00041095,2]
[341282453,1730740291988,-500.0,0.00041095,2]
[341282454,1730740291998,-500.0,0.00041095,2]
[341282455,1730740292007,-500.0,0.00041095,2]
[341282456,1730740292018,-500.0,0.00041095,2]
[341282457,1730740292028,-500.0,0.00041095,2]
[341282458,1730740292037,-500.0,0.00041095,2]
[341282459,1730740292047,-500.0,0.00041095,2]
[341282460,1730740292057,-500.0,0.00041095,2]
[341282461,1730740292067,-500.0,0.00041095,2]
[341282462,1730740292077,-500.0,0.00041095,2]
[341282463,1730740292087,-500.0,0.00041095,2]
[341282464,1730740292096,-636.01391556,0.00041095,2]
[341282465,1730740292106,-637.87,0.00041095,2]
[341282466,1730740292119,-637.87,0.00041095,2]
[341282467,1730740292128,-637.87,0.00041095,2]
[341282468,1730740292137,-637.87,0.00041095,2]
[341282469,1730740292147,-637.87,0.00041095,2]
[341282470,1730740292158,-637.87,0.00041095,2]
[341282471,1730740292168,-637.87,0.00041095,2]
[341282472,1730740292177,-637.87,0.00041095,2]
[341282473,1730740292191,-637.87,0.00041095,2]
[341282474,1730740292201,-637.87,0.00041095,2]
[341282475,1730740292210,-637.87,0.00041095,2]
[341282476,1730740292220,-637.87,0.00041095,2]
[341282477,1730740292229,-637.87,0.00041095,2]
[341282478,1730740292239,-637.87,0.00041095,2]
[341282479,1730740292249,-637.87,0.00041095,2]
[341282480,1730740292258,-637.87,0.00041095,2]
[341282481,1730740292268,-637.87,0.00041095,2]
[341282482,1730740292277,-637.87,0.00041095,2]
[341282483,1730740292287,-637.87,0.00041095,2]
[341282484,1730740292296,-637.87,0.00041095,2]
[341282485,1730740292306,-637.87,0.00041095,2]
[341282486,1730740292315,-637.87,0.00041095,2]
[341282487,1730740292324,-637.87,0.00041095,2]
[341282488,1730740292334,-637.96297377,0.00041095,2]
[341282489,1730740292344,-1493.51,0.00041095,120]
[341282490,1730740292353,-500.0,0.00041095,2]
[341282491,1730740292362,-500.0,0.00041095,2]
[341282492,1730740292371,-175.19337029,0.00041095,2]
[341282493,1730740292381,-500.0,0.00041095,2]
[341282494,1730740292390,-500.0,0.00041095,2]
[341282495,1730740292400,-657.0,0.00041096,13]
[341282496,1730740292409,-157.0,0.00041096,2]
[341282497,1730740292419,-150.0,0.00041096,2]
[341282498,1730740292428,-1000.0,0.00041096,120]
[341282499,1730740292438,-2500.0,0.000411,2]
[341282500,1730740292447,-551.0,0.000411,2]
[341282501,1730740292457,-1000.0,0.00041112,120]
[341282502,1730740292466,-1000.0,0.00041129,120]
[341282503,1730740292477,-1000.0,0.00041146,120]
[341282504,1730740292486,-345.88,0.00041156,2]
[341282505,1730740292496,-1000.0,0.00041162,120]
[341282506,1730740292506,-1000.0,0.00041179,120]
[341282507,1730740292515,-1000.0,0.00041196,120]
[341282508,1730740292524,-1000.0,0.00041212,120]
[341282509,1730740292534,-160.71891,0.00041222,120]
[341282510,1730740292543,-1000.0,0.00041229,120]
[341282511,1730740292552,-1000.0,0.00041245,120]
[341282512,1730740292561,-1000.0,0.00041262,120]
[341282513,1730740292571,-591.11,0.00041269,2]
[341282514,1730740292580,-1598.16,0.00041269,2]
[341282515,1730740292589,-740.06,0.00041269,2]
[341282516,1730740292599,-665.74,0.00041269,2]
[341282517,1730740292609,-500.0,0.00041269,2]
[341282518,1730740292619,-1000.0,0.00041279,120]
[341282519,1730740292628,-1000.0,0.00041295,120]
[341282520,1730740292638,-1000.0,0.00041312,120]
[341282521,1730740292647,-1000.0,0.00041328,120]
[341282522,1730740292657,-1000.0,0.00041345,120]
[341282523,1730740292666,-1731.28255447,0.00041352,15]
[341282524,1730740292675,-1000.0,0.00041362,120]
[341282525,1730740292685,-611.42,0.00041368,2]
[341282526,1730740292695,-500.0,0.00041368,2]
[341282527,1730740292705,-1000.0,0.00041378,120]
[341282528,1730740292714,-1000.0,0.00041395,120]
[341282529,1730740292723,-1000.0,0.00041411,120]
[341282530,1730740292733,-1000.0,0.00041428,120]
[341282531,1730740292743,-1000.0,0.00041445,120]
[341282532,1730740292753,-1000.0,0.00041461,120]
[341282533,1730740292762,-1000.0,0.00041478,120]
[341282534,1730740292772,-1000.0,0.00041494,120]
[341282535,1730740292781,-1000.0,0.00041511,120]
[341282536,1730740292791,-1000.0,0.00041528,120]
[341282537,1730740292800,-500.0,0.00041528,120]
[341282538,1730740292809,-500.0,0.00041528,120]
[341282539,1730740292818,-219.57,0.00041532,2]
[341282540,1730740292827,-591.11,0.00041543,2]
[341282541,1730740292837,-1598.16,0.00041543,2]
[341282542,1730740292846,-740.06,0.00041543,2]
[341282543,1730740292856,-665.74,0.00041543,2]
[341282544,1730740292866,-513.24976086,0.00041543,2]
[341282545,1730740292875,-1000.0,0.00041544,120]
[341282546,1730740292884,-150.0,0.00041549,2]
[341282547,1730740292894,-1000.0,0.00041561,120]
[341282548,1730740292904,-1000.0,0.00041577,120]
[341282549,1730740292914,-1000.0,0.00041594,120]
[341282550,1730740292923,-1000.0,0.00041611,120]
[341282551,1730740292933,-1000.0,0.00041627,120]
[341282552,1730740292943,-156.63276065,0.00041643,30]
[341282553,1730740292953,-761.0,0.00041644,2]
[341282554,1730740292963,-761.0,0.00041644,2]
[341282555,1730740292972,-761.0,0.00041644,2]
[341282556,1730740292982,-761.0,0.00041644,2]
[341282557,1730740292992,-761.0,0.00041644,2]
[341282558,1730740293001,-758.03,0.00041644,2]
[341282559,1730740293011,-1000.0,0.00041644,120]
[341282560,1730740293020,-227.26,0.00041644,2]
[341282561,1730740293030,-1000.0,0.0004166,120]
[341282562,1730740293040,-1000.0,0.00041677,120]
[341282563,1730740293049,-1000.0,0.00041694,120]
[341282564,1730740293059,-17824.67,0.000417,7]
[341282565,1730740293069,-1000.0,0.0004171,120]
[341282566,1730740293079,-1000.0,0.00041727,120]
[341282567,1730740293088,-1000.0,0.00041743,120]
[341282568,1730740293098,-1000.0,0.0004176,120]
[341282569,1730740293109,-1000.0,0.00041777,120]
[341282570,1730740293120,-1493.51,0.0004178,120]
[341282571,1730740293130,-1000.0,0.00041793,120]
[341282572,1730740293140,-1000.0,0.0004181,120]
[341282573,1730740293150,-591.15561657,0.00041816,2]
[341282574,1730740293161,-1598.30960716,0.00041816,2]
[341282575,1730740293171,-740.23859887,0.00041816,2]
[341282576,1730740293181,-665.76159325,0.00041816,2]
[341282577,1730740293193,-1000.0,0.00041826,120]
[341282578,1730740293204,-1000.0,0.00041843,120]
[341282579,1730740293214,-177.37,0.00041857,120]
[341282580,1730740293224,-1000.0,0.0004186,120]
[341282581,1730740293234,-1000.0,0.00041876,120]
[341282582,1730740293244,-1000.0,0.00041893,120]
[341282583,1730740293253,-1000.0,0.0004191,120]
[341282584,1730740293263,-1000.0,0.00041926,120]
[341282585,1730740293273,-1000.0,0.00041943,120]
[341282586,1730740293283,-160.71891,0.00041944,120]
[341282587,1730740293293,-1000.0,0.00041959,120]
[341282588,1730740293303,-1000.0,0.00041976,120]
[341282589,1730740293312,-1000.0,0.00041993,120]
[341282590,1730740293321,-150.0,0.00041999,120]
[341282591,1730740293332,-611.42,0.00041999,2]
[341282592,1730740293341,-500.0,0.00041999,2]
[341282593,1730740293351,-18067.0,0.00042,2]
[341282594,1730740293359,-576.0,0.00042,2]
[341282595,1730740293369,-209168.08436881,0.00042,30]
[341282596,1730740293413,-167.0,0.00042,120]
[341282597,1730740293423,-1000.0,0.00042,12]
[341282598,1730740293432,-1000.0,0.00042,12]
[341282599,1730740293443,-900.0,0.00042,43]
[341282600,1730740293452,-1300.0,0.00042,30]
[341282601,1730740293461,-250.0,0.00042,30]
[341282602,1730740293471,-1000.0,0.00042009,120]
[341282603,1730740293480,-1000.0,0.00042026,120]
[341282604,1730740293490,-1000.0,0.00042042,120]
[341282605,1730740293500,-1000.0,0.00042059,120]
[341282606,1730740293510,-1000.0,0.00042076,120]
[341282607,1730740293520,-1000.0,0.00042092,120]
[341282608,1730740293530,-1000.0,0.00042109,120]
[341282609,1730740293539,-1000.0,0.00042125,120]
[341282610,1730740293549,-1000.0,0.00042142,120]
[341282611,1730740293559,-1000.0,0.00042159,120]
[341282612,1730740293568,-1000.0,0.00042175,120]
[341282613,1730740293577,-150.0,0.00042177,2]
[341282614,1730740293587,-1000.0,0.00042192,120]
[341282615,1730740293596,-150.0,0.00042192,2]
[341282616,1730740293606,-150.0,0.00042192,2]
[341282617,1730740293615,-1000.0,0.00042208,120]
[341282618,1730740293624,-1000.0,0.00042225,120]
[341282619,1730740293635,-1000.0,0.00042242,120]
[341282620,1730740293644,-152.0,0.00042251,5]
[341282621,1730740293654,-1000.0,0.00042258,120]
[341282622,1730740293663,-1000.0,0.00042275,120]
[341282623,1730740293673,-1000.0,0.00042291,120]
[341282624,1730740293683,-1000.0,0.00042308,120]
[341282625,1730740293694,-1000.0,0.00042325,120]
[341282626,1730740293704,-1000.0,0.00042341,120]
[341282627,1730740293713,-1000.0,0.00042358,120]
[341282628,1730740293723,-1000.0,0.00042374,120]
[341282629,1730740293733,-1000.0,0.00042391,120]
[341282630,1730740293742,-1000.0,0.00042408,120]
[341282631,1730740293752,-1000.0,0.00042424,120]
[341282632,1730740293761,-180.51,0.00042428,120]
[341282633,1730740293771,-1000.0,0.00042441,120]
[341282634,1730740293781,-1000.0,0.00042457,120]
[341282635,1730740293790,-1493.51,0.00042465,120]
[341282636,1730740293801,-1000.0,0.00042474,120]
[341282637,1730740293810,-1000.0,0.00042491,120]
[341282638,1730740293820,-1000.0,0.00042507,120]
[341282639,1730740293830,-1000.0,0.00042524,120]
[341282640,1730740293839,-1000.0,0.0004254,120]
[341282641,1730740293849,-1000.0,0.00042557,120]
[341282642,1730740293858,-1000.0,0.00042574,120]
[341282643,1730740293868,-1731.28255447,0.00042577,15]
[341282644,1730740293878,-1000.0,0.0004259,120]
[341282645,1730740293887,-840.14,0.000426,60]
[341282646,1730740293896,-840.14,0.000426,60]
[341282647,1730740293906,-1000.0,0.00042607,120]
[341282648,1730740293915,-1000.0,0.00042623,120]
[341282649,1730740293924,-1000.0,0.0004264,120]
[341282650,1730740293934,-1000.0,0.00042657,120]
[341282651,1730740293947,-1000.0,0.00042673,120]
[341282652,1730740293957,-1000.0,0.0004269,120]
[341282653,1730740293967,-229.0,0.000427,30]
[341282654,1730740293977,-742.0,0.000427,30]
[341282655,1730740293986,-1000.0,0.000427,30]
[341282656,1730740293996,-1000.0,0.00042707,120]
[341282657,1730740294006,-1000.0,0.00042723,120]
[341282658,1730740294016,-151.0,0.00042739,7]
[341282659,1730740294026,-1472.37945846,0.0004274,120]
[341282660,1730740294036,-500.0,0.00042809,4]
[341282661,1730740294045,-1000.0,0.00042848,2]
[341282662,1730740294054,-4073.15999697,0.000429,15]
[341282663,1730740294064,-192.0,0.000429,29]
[341282664,1730740294073,-840.14,0.000429,60]
[341282665,1730740294083,-982.98797001,0.0004298,120]
[341282666,1730740294092,-380.39298304,0.0004299,30]
[341282667,1730740294102,-400.08,0.00042993,2]
[341282668,1730740294116,-5800.0,0.00042998,7]
[341282669,1730740294125,-5800.0,0.00042998,7]
[341282670,1730740294135,-611.42,0.00042999,2]
[341282671,1730740294145,-500.0,0.00042999,2]
[341282672,1730740294154,-68802.80682878,0.00043,2]
[341282673,1730740294163,-27506.91923208,0.00043,120]
[341282674,1730740294174,-1219.331546,0.00043,2]
[341282675,1730740294184,-300.0000012,0.00043,2]
[341282676,1730740294197,-2049.12,0.00043,120]
[341282677,1730740294207,-900.0,0.00043,44]
[341282678,1730740294217,-9048.70926978,0.00043,15]
[341282679,1730740294226,-151.0,0.00043,7]
[341282680,1730740294236,-186.86,0.00043014,120]
[341282681,1730740294245,-500.0,0.00043074,4]
[341282682,1730740294255,-500.0,0.00043083,4]
[341282683,1730740294265,-1493.51,0.0004315,120]
[341282684,1730740294274,-273.06,0.00043151,2]
[341282685,1730740294284,-153.751,0.0004318,2]
[341282686,1730740294294,-150.0,0.00043259,2]
[341282687,1730740294304,-2188.9876,0.0004328,60]
[341282688,1730740294313,-1000.0,0.000433,30]
[341282689,1730740294322,-690.22793005,0.000433,7]
[341282690,1730740294331,-150.83,0.000433,30]
[341282691,1730740294340,-10000.000001,0.000434,60]
[341282692,1730740294350,-2107.0,0.0004349,33]
[341282693,1730740294359,-10000.0,0.000435,70]
[341282694,1730740294370,-255.15286,0.000435,14]
[341282695,1730740294380,-150.83,0.000435,30]
[341282696,1730740294390,-5000.0,0.000435,3]
[341282697,1730740294402,-700.0,0.000435,15]
[341282698,1730740294412,-157.399859,0.00043596,14]
[341282699,1730740294422,-157.399859,0.00043596,14]
[341282700,1730740294432,-44561.65,0.00043596,11]
[341282701,1730740294442,-1000.0,0.000436,30]
[341282702,1730740294451,-3909.78022659,0.000436,20]
[341282703,1730740294462,-840.14,0.000436,60]
[341282704,1730740294471,-700.0,0.000436,15]
[341282705,1730740294485,-1006.711896,0.0004366,19]
[341282706,1730740294495,-4786.0651473,0.00043664,120]
[341282707,1730740294504,-1263.37189023,0.00043677,60]
[341282708,1730740294519,-611.42,0.00043678,2]
[341282709,1730740294529,-611.42,0.00043678,2]
[341282710,1730740294539,-611.42,0.00043678,2]
[341282711,1730740294549,-611.42,0.00043678,2]
[341282712,1730740294558,-611.42,0.00043678,2]
[341282713,1730740294569,-611.42,0.00043678,2]
[341282714,1730740294579,-611.42,0.00043678,2]
[341282715,1730740294589,-611.42,0.00043678,2]
[341282716,1730740294599,-611.42,0.00043678,2]
[341282717,1730740294609,-611.42,0.00043678,2]
[341282718,1730740294619,-611.64,0.00043678,2]
[341282719,1730740294628,-500.0,0.00043678,2]
[341282720,1730740294637,-500.0,0.00043678,2]
[341282721,1730740294647,-500.0,0.00043678,2]
[341282722,1730740294656,-500.0,0.00043678,2]
[341282723,1730740294666,-259.79,0.00043678,2]
[341282724,1730740294675,-826.110308,0.00043678,14]
[341282725,1730740294685,-826.110308,0.00043678,14]
[341282726,1730740294700,-151.0,0.00043678,14]
[341282727,1730740294709,-151.0,0.00043678,14]
[341282728,1730740294718,-298.90457,0.00043678,14]
[341282729,1730740294728,-10000.0,0.00043678,30]
[341282730,1730740294737,-656.93605744,0.00043678,30]
[341282731,1730740294746,-656.93605744,0.00043679,30]
[341282732,1730740294756,-1000.0,0.0004368,19]
[341282733,1730740294766,-18881.81664691,0.00043699,2]
[341282734,1730740294775,-1942.80478819,0.000437,120]
[341282735,1730740294784,-150.0,0.000437,120]
[341282736,1730740294793,-600.0,0.000437,120]
[341282737,1730740294802,-700.0,0.000437,15]
[341282738,1730740294811,-1000.0,0.000437,19]
[341282739,1730740294821,-1000.0,0.0004372,19]
[341282740,1730740294831,-1000.0,0.0004374,19]
[341282741,1730740294840,-1000.0,0.0004376,19]
[341282742,1730740294850,-6956.1638975,0.00043768,2]
[341282743,1730740294859,-1976.5241805,0.00043768,2]
[341282744,1730740294868,-1452.0100667,0.00043768,2]
[341282745,1730740294877,-3757.1408444,0.00043768,2]
[341282746,1730740294887,-8000.0,0.0004377,120]
[341282747,1730740294896,-1418.98947447,0.0004377,3]
[341282748,1730740294905,-1000.0,0.0004378,19]
[341282749,1730740294914,-150.0,0.00043795,14]
[341282750,1730740294923,-151.0,0.00043798,2]
[341282751,1730740294933,-595.06970383,0.00043798,2]
[341282752,1730740294947,-2139386.10292447,0.00043798,12]
[341282753,1730740295058,-575316.96505974,0.00043798,12]
[341282754,1730740295070,-836247.49099339,0.00043798,12]
[341282755,1730740295176,-500.0,0.00032876,2]
[341282756,1730740295189,-500.0,0.00032876,2]
[341282757,1730740295199,-500.0,0.00032876,2]
[341282758,1730740295208,-500.0,0.00033149,2]
[341282759,1730740295218,-500.0,0.00033149,2]
[341282760,1730740295227,-500.0,0.0003315,2]
[341282761,1730740295236,-500.0,0.0003315,2]
[341282762,1730740295245,-500.0,0.00033423,2]
[341282763,1730740295254,-500.0,0.00033423,2]
[341282764,1730740295263,-500.0,0.00033697,2]
[341282765,1730740295272,-381.75,0.00033971,2]
[341282766,1730740295283,-332850.31143704,0.00043798,12]
[341282767,1730740295351,-20871.21120325,0.00043798,12]
[341282768,1730740295364,-2636.35939003,0.00043798,12]
[341282769,1730740295377,-820.55000001,0.00043798,12]
[341282770,1730740295410,-500.0,0.0003315,2]
[341282771,1730740295419,-500.0,0.00033424,2]
[341282772,1730740295429,-854.08108638,0.00035689,2]
[341282773,1730740295439,-467.75531537,0.00043798,12]
[341282774,1730740295451,-15575.57371515,0.00043798,12]
[341282775,1730740295462,-1205.0,0.00043798,12]
[341282776,1730740295531,-500.0,0.00032876,2]
[341282777,1730740295540,-500.0,0.00033149,2]
[341282778,1730740295550,-613.27,0.00033149,2]
[341282779,1730740295559,-500.0,0.00033149,2]
[341282780,1730740295568,-500.0,0.0003315,2]
[341282781,1730740295578,-500.0,0.00033423,2]
[341282782,1730740295588,-414.44,0.00033698,2]
[341282783,1730740295598,-30286.29,0.00043798,12]
[341282784,1730740295609,-2480.21566597,0.00043798,12]
[341282785,1730740295625,-283.945823,0.00033424,2]
[341282786,1730740295644,-250.82528258,0.00033423,2]
[341282787,1730740295759,-257.500015,0.00032876,2]
[341282788,1730740295777,-242.499985,0.00032876,2]
[341282789,1730740295787,-500.0,0.00032876,2]
[341282790,1730740295797,-500.0,0.00033149,2]
[341282791,1730740295806,-500.0,0.00033149,2]
[341282792,1730740295816,-500.0,0.0003315,2]
[341282793,1730740295825,-249.17471742,0.00033423,2]
[341282794,1730740295835,-500.0,0.00033423,2]
[341282795,1730740295844,-500.0,0.00033423,2]
[341282796,1730740295854,-216.054177,0.00033424,2]
[341282797,1730740295863,-599.81070432,0.00033697,2]
[341282798,1730740295872,-500.0,0.00033697,2]
[341282799,1730740295882,-500.0,0.00033698,2]
[341282800,1730740295891,-157.2,0.00033972,2]
[341282801,1730740295901,-854.08108637,0.00039746,2]
[341282802,1730740295910,-8705.88198506,0.00043798,12]
[341282803,1730740295925,-33813.98362309,0.00043798,12]
[341282815,1730740803096,-424.33,0.0001726,7]
[341282818,1730741108758,8137645.24439433,0.00016,2]
[341282820,1730741141456,158.44,0.00015342,2]